fUSD/lending_fUSD_20260115
["ID","MTS","AMOUNT","RATE_DAILY","PERIOD"]
[402007306,1768456302005,-910.66,0.00041917,30]
[402007307,1768456302015,-500.0,0.00041917,30]
[402007308,1768456302024,-1081.92,0.00041917,30]
[402007309,1768456302033,-500.0,0.00041917,30]
[402007310,1768456302042,-879.87,0.00041917,30]
[402007311,1768456302050,-500.0,0.00041917,30]
[402007312,1768456302059,-500.0,0.00041917,30]
[402007313,1768456302068,-684.98,0.00041917,30]
[402007314,1768456302077,-500.0,0.00041917,30]
[402007315,1768456302087,-1058.06,0.00041917,30]
[402007316,1768456302096,-1000.0,0.00041917,30]
[402007317,1768456302106,-500.0,0.00041917,30]
[402007318,1768456302115,-1873.12,0.00041917,30]
[402007319,1768456302124,-500.0,0.00041917,30]
[402007320,1768456302133,-1840.97,0.00041917,30]
[402007321,1768456302143,-500.0,0.00041917,30]
[402007322,1768456302152,-500.0,0.00041917,30]
[402007323,1768456302164,-1107.51,0.00041917,30]
[402007324,1768456302173,-500.0,0.00041917,30]
[402007325,1768456302182,-500.0,0.00041917,30]
[402007326,1768456302191,-500.0,0.00041917,30]
[402007327,1768456302201,-509.00561704,0.00041917,30]
[402007328,1768456302211,-1052.64,0.00041917,30]
[402007329,1768456302219,-752.36,0.00041917,30]
[402007330,1768456302228,-500.0,0.00041917,30]
[402007331,1768456302237,-500.0,0.00041917,30]
[402007332,1768456302246,-500.0,0.00041917,30]
[402007333,1768456302255,-1837.54,0.00041917,30]
[402007334,1768456302264,-500.0,0.00041917,30]
[402007335,1768456302273,-1368.1,0.00041917,30]
[402007336,1768456302282,-500.0,0.00041917,30]
[402007337,1768456302291,-1274.16,0.00041917,30]
[402007338,1768456302299,-658.15,0.00041917,30]
[402007339,1768456302308,-602.98,0.00041917,30]
[402007340,1768456302317,-765.62,0.00041917,30]
[402007341,1768456302326,-579.51,0.00041917,30]
[402007342,1768456302335,-858.81,0.00041917,30]
[402007343,1768456302344,-1169.99,0.00041917,30]
[402007344,1768456302354,-2319.02,0.00041917,30]
[402007345,1768456302363,-1075.89,0.00041917,30]
[402007346,1768456302571,-500.0,0.00041917,30]
[402007347,1768456302581,-500.0,0.00041917,30]
[402007348,1768456302591,-500.0,0.00041917,30]
[402007349,1768456302600,-500.78,0.00041917,30]
[402007350,1768456302609,-300.0,0.00041917,2]
[402007351,1768456302618,-1035.17,0.00041917,30]
[402007352,1768456302627,-621.4,0.00041917,30]
[402007353,1768456302636,-788.9,0.00041917,30]
[402007354,1768456302646,-500.0,0.00041917,30]
[402007355,1768456302655,-870.22,0.00041917,30]
[402007356,1768456302664,-990.93,0.00041917,30]
[402007357,1768456302674,-1632.51,0.00041917,30]
[402007358,1768456302683,-500.0,0.00041917,30]
[402007359,1768456302693,-1930.57,0.00041917,30]
[402007360,1768456302703,-1583.0,0.00041917,30]
[402007361,1768456302712,-983.91,0.00041917,30]
[402007362,1768456302721,-531.58,0.00041917,30]
[402007363,1768456302731,-500.0,0.00041917,30]
[402007364,1768456302740,-500.0,0.00041917,30]
[402007365,1768456302750,-1943.14,0.00041917,30]
[402007366,1768456302759,-500.0,0.00041917,16]
[402007367,1768456302768,-500.0,0.00041917,30]
[402007368,1768456302778,-500.0,0.00041917,30]
[402007369,1768456302787,-862.08,0.00041917,30]
[402007370,1768456302796,-624.03,0.00041917,30]
[402007371,1768456302805,-500.0,0.00041917,30]
[402007372,1768456302814,-1404.84,0.00041917,30]
[402007373,1768456302823,-500.0,0.00041917,30]
[402007374,1768456302832,-1449.27,0.00041917,30]
[402007375,1768456302841,-2295.17,0.00041917,30]
[402007376,1768456302851,-500.0,0.00041917,30]
[402007377,1768456302860,-595.77,0.00041917,30]
[402007378,1768456302869,-500.0,0.00041917,30]
[402007379,1768456302878,-500.0,0.00041917,30]
[402007380,1768456302887,-732.39,0.00041917,30]
[402007381,1768456302896,-1203.46,0.00041917,30]
[402007382,1768456302905,-1317.45,0.00041917,30]
[402007383,1768456302914,-500.0,0.00041917,30]
[402007384,1768456302923,-1797.52,0.00041917,30]
[402007385,1768456302932,-3003.5,0.00041917,30]
[402007386,1768456302941,-500.0,0.00041917,30]
[402007387,1768456302949,-500.0,0.00041917,30]
[402007388,1768456302958,-500.0,0.00041917,30]
[402007389,1768456302967,-500.0,0.00041917,30]
[402007390,1768456302976,-1488.87,0.00041917,30]
[402007391,1768456302985,-500.0,0.00041917,30]
[402007392,1768456302994,-500.0,0.00041917,30]
[402007393,1768456303004,-598.94,0.00041917,30]
[402007394,1768456303012,-807.65,0.00041917,30]
[402007395,1768456303022,-500.0,0.00041917,30]
[402007396,1768456303031,-500.0,0.00041917,30]
[402007397,1768456303040,-500.0,0.00041917,30]
[402007398,1768456303049,-500.0,0.00041917,30]
[402007399,1768456303058,-500.0,0.00041917,30]
[402007400,1768456303067,-500.0,0.00041917,30]
[402007401,1768456303076,-500.0,0.00041917,30]
[402007402,1768456303086,-1231.59,0.00041917,30]
[402007403,1768456303095,-500.0,0.00041917,30]
[402007404,1768456303105,-1553.63,0.00041917,30]
[402007405,1768456303114,-694.19,0.00041917,30]
[402007406,1768456303124,-573.6,0.00041917,30]
[402007407,1768456303134,-500.0,0.00041917,30]
[402007408,1768456303144,-500.0,0.00041917,30]
[402007409,1768456303154,-1448.11,0.00041917,30]
[402007410,1768456303167,-500.0,0.00041917,30]
[402007411,1768456303176,-500.0,0.00041917,30]
[402007412,1768456303185,-1173.28,0.00041917,30]
[402007413,1768456303194,-500.0,0.00041917,30]
[402007414,1768456303204,-500.0,0.00041917,30]
[402007415,1768456303214,-1760.05,0.00041917,30]
[402007416,1768456303223,-1093.35,0.00041917,30]
[402007417,1768456303234,-500.0,0.00041917,30]
[402007418,1768456303244,-500.0,0.00041917,30]
[402007419,1768456303253,-500.0,0.00041917,30]
[402007420,1768456303262,-1138.35,0.00041917,30]
[402007421,1768456303270,-2167.36,0.00041917,30]
[402007422,1768456303279,-500.0,0.00041917,30]
[402007423,1768456303289,-1025.05,0.00041917,30]
[402007424,1768456303298,-447.60128538,0.00041917,30]
[402007425,1768456303307,-500.0,0.00041917,30]
[402007426,1768456303316,-580.17,0.00041917,30]
[402007427,1768456303325,-500.0,0.00041917,30]
[402007428,1768456303335,-500.0,0.00041917,30]
[402007429,1768456303344,-500.0,0.00041917,30]
[402007430,1768456303353,-723.77,0.00041917,30]
[402007431,1768456303362,-893.87,0.00041917,30]
[402007432,1768456303371,-590.63,0.00041917,30]
[402007433,1768456303380,-500.0,0.00041917,30]
[402007434,1768456303389,-500.0,0.00041917,30]
[402007435,1768456303398,-529.54,0.00041917,30]
[402007436,1768456303407,-1383.42,0.00041917,30]
[402007437,1768456303416,-500.0,0.00041917,30]
[402007438,1768456303425,-922.96,0.00041917,30]
[402007439,1768456303435,-500.0,0.00041917,30]
[402007440,1768456303444,-1406.87,0.00041917,30]
[402007441,1768456303453,-500.0,0.00041917,30]
[402007442,1768456303462,-500.0,0.00041917,30]
[402007443,1768456303471,-500.0,0.00041917,30]
[402007444,1768456303481,-1124.85,0.00041917,30]
[402007445,1768456303490,-614.03,0.00041917,30]
[402007446,1768456303500,-850.47,0.00041917,30]
[402007447,1768456303509,-840.82,0.00041917,30]
[402007448,1768456303520,-500.0,0.00041917,30]
[402007449,1768456303529,-795.79,0.00041917,30]
[402007450,1768456303539,-500.0,0.00041917,30]
[402007451,1768456303548,-500.0,0.00041917,30]
[402007452,1768456303558,-1197.5,0.00041917,30]
[402007453,1768456303568,-1879.94,0.00041917,30]
[402007454,1768456303577,-1126.11,0.00041917,30]
[402007455,1768456303587,-500.0,0.00041917,30]
[402007456,1768456303597,-1378.85,0.00041917,30]
[402007457,1768456303607,-630.98,0.00041917,30]
[402007458,1768456303617,-1239.97,0.00041917,30]
[402007459,1768456303626,-500.0,0.00041917,30]
[402007460,1768456303636,-500.0,0.00041917,30]
[402007461,1768456303648,-500.0,0.00041917,30]
[402007462,1768456303657,-515.01,0.00041917,30]
[402007463,1768456303667,-500.0,0.00041917,30]
[402007464,1768456303678,-3147.22,0.00041917,30]
[402007465,1768456303687,-500.0,0.00041917,30]
[402007466,1768456303697,-2422.32,0.00041917,30]
[402007467,1768456303706,-692.15,0.00041917,30]
[402007468,1768456303716,-597.12,0.00041917,30]
[402007469,1768456303726,-625.88,0.00041917,30]
[402007470,1768456303735,-550.39,0.00041917,30]
[402007471,1768456303744,-500.0,0.00041917,30]
[402007472,1768456303754,-1231.32,0.00041917,30]
[402007473,1768456303763,-500.0,0.00041917,30]
[402007474,1768456303773,-500.0,0.00041917,30]
[402007475,1768456303783,-1201.89,0.00041917,30]
[402007476,1768456303792,-2824.64,0.00041917,30]
[402007477,1768456303802,-751.11,0.00041917,30]
[402007478,1768456303811,-589.34,0.00041917,30]
[402007479,1768456303821,-558.21,0.00041917,30]
[402007480,1768456303830,-500.0,0.00041917,30]
[402007481,1768456303839,-819.83,0.00041917,30]
[402007482,1768456303848,-290.55402364,0.00041917,30]
[402007483,1768456303857,-500.0,0.00041917,14]
[402007484,1768456303867,-1458.11,0.00041917,30]
[402007485,1768456303876,-783.08,0.00041917,30]
[402007486,1768456303885,-1693.52,0.00041917,30]
[402007487,1768456303898,-1392.94,0.00041917,30]
[402007488,1768456303907,-1145.89,0.00041917,2]
[402007489,1768456303917,-771.96,0.00041917,30]
[402007490,1768456303927,-728.13,0.00041917,30]
[402007491,1768456303935,-645.5,0.00041917,30]
[402007492,1768456303944,-1358.25,0.00041917,30]
[402007493,1768456303952,-1951.01,0.00041917,30]
[402007494,1768456303962,-500.0,0.00041917,30]
[402007495,1768456303971,-500.0,0.00041917,30]
[402007496,1768456303981,-500.0,0.00041917,30]
[402007497,1768456303990,-500.0,0.00041917,30]
[402007498,1768456304000,-764.43,0.00041917,30]
[402007499,1768456304009,-500.0,0.00041917,30]
[402007500,1768456304019,-793.06,0.00041917,30]
[402007501,1768456304028,-652.13,0.00041917,30]
[402007502,1768456304037,-1362.49,0.00041917,30]
[402007503,1768456304046,-500.0,0.00041917,30]
[402007504,1768456304055,-500.0,0.00041917,30]
[402007505,1768456304064,-500.0,0.00041917,30]
[402007506,1768456304073,-500.0,0.00041917,30]
[402007507,1768456304082,-874.92,0.00041917,30]
[402007508,1768456304092,-500.0,0.00041917,30]
[402007509,1768456304101,-500.0,0.00041917,30]
[402007510,1768456304111,-1307.13,0.00041917,30]
[402007511,1768456304120,-500.0,0.00041917,30]
[402007512,1768456304129,-500.0,0.00041917,30]
[402007513,1768456304139,-500.0,0.00041917,30]
[402007514,1768456304148,-500.0,0.00041917,30]
[402007515,1768456304158,-500.0,0.00041917,30]
[402007516,1768456304170,-870.73,0.00041917,30]
[402007517,1768456304179,-1296.01,0.00041917,30]
[402007518,1768456304188,-2901.2,0.00041917,30]
[402007519,1768456304199,-1510.63,0.00041917,30]
[402007520,1768456304208,-547.16,0.00041917,30]
[402007521,1768456304218,-675.68,0.00041917,30]
[402007522,1768456304227,-2672.7,0.00041917,30]
[402007523,1768456304239,-500.0,0.00041917,30]
[402007524,1768456304248,-500.0,0.00041917,30]
[402007525,1768456304257,-747.8,0.00041917,30]
[402007526,1768456304267,-500.0,0.00041917,30]
[402007527,1768456304276,-835.52,0.00041917,30]
[402007528,1768456304285,-500.0,0.00041917,30]
[402007529,1768456304295,-2690.14,0.00041917,30]
[402007530,1768456304304,-500.0,0.00041917,30]
[402007531,1768456304313,-1978.17,0.00041917,30]
[402007532,1768456304323,-1312.11,0.00041917,30]
[402007533,1768456304332,-557.29,0.00041917,30]
[402007534,1768456304340,-1022.6,0.00041917,30]
[402007535,1768456304350,-1337.57,0.00041917,30]
[402007536,1768456304357,-1746.26,0.00041917,30]
[402007537,1768456304366,-539.51,0.00041917,30]
[402007538,1768456304376,-3220.79,0.00041917,30]
[402007539,1768456304386,-1493.44,0.00041917,30]
[402007540,1768456304397,-500.0,0.00041917,30]
[402007541,1768456304407,-1507.88,0.00041917,30]
[402007542,1768456304416,-500.0,0.00041917,30]
[402007543,1768456304426,-500.0,0.00041917,30]
[402007544,1768456304435,-1289.78,0.00041917,30]
[402007545,1768456304445,-510.66,0.00041917,30]
[402007546,1768456304454,-1839.33,0.00041917,30]
[402007547,1768456304463,-517.72,0.00041917,30]
[402007548,1768456304473,-500.0,0.00041917,30]
[402007549,1768456304482,-500.0,0.00041917,30]
[402007550,1768456304491,-500.0,0.00041917,30]
[402007551,1768456304501,-626.68,0.00041917,30]
[402007552,1768456304510,-500.0,0.00041917,30]
[402007553,1768456304520,-547.18,0.00041917,30]
[402007554,1768456304528,-2050.85,0.00041917,30]
[402007555,1768456304538,-510.56,0.00041917,30]
[402007556,1768456304547,-1452.21,0.00041917,30]
[402007557,1768456304556,-500.0,0.00041917,30]
[402007558,1768456304566,-581.73,0.00041917,30]
[402007559,1768456304575,-500.0,0.00041917,30]
[402007560,1768456304584,-500.0,0.00041917,30]
[402007561,1768456304593,-500.0,0.00041917,30]
[402007562,1768456304602,-512.07,0.00041917,30]
[402007563,1768456304612,-2218.71,0.00041917,30]
[402007564,1768456304621,-500.0,0.00041917,30]
[402007565,1768456304630,-533.11,0.00041917,30]
[402007566,1768456304639,-500.0,0.00041917,30]
[402007567,1768456304650,-500.0,0.00041917,30]
[402007568,1768456304659,-500.0,0.00041917,30]
[402007569,1768456304668,-1103.71,0.00041917,30]
[402007570,1768456304678,-1873.11,0.00041917,30]
[402007571,1768456304687,-1187.6,0.00041917,30]
[402007572,1768456304696,-1986.74,0.00041917,30]
[402007573,1768456304706,-500.0,0.00041917,30]
[402007574,1768456304715,-826.89,0.00041917,30]
[402007575,1768456304724,-500.0,0.00041917,30]
[402007576,1768456304733,-500.0,0.00041917,30]
[402007577,1768456304742,-500.0,0.00041917,30]
[402007578,1768456304752,-500.0,0.00041917,30]
[402007579,1768456304761,-500.0,0.00041917,30]
[402007580,1768456304771,-882.92,0.00041917,30]
[402007581,1768456304780,-2561.19,0.00041917,30]
[402007582,1768456304789,-1506.3,0.00041917,30]
[402007583,1768456304798,-500.0,0.00041917,30]
[402007584,1768456304807,-500.0,0.00041917,30]
[402007585,1768456304816,-500.0,0.00041917,30]
[402007586,1768456304825,-668.38,0.00041917,30]
[402007587,1768456304834,-1252.91,0.00041917,30]
[402007588,1768456304843,-512.98658148,0.00041917,30]
[402007589,1768456304852,-679.9,0.00041917,30]
[402007590,1768456304861,-1294.07,0.00041917,30]
[402007591,1768456304870,-759.7,0.00041917,30]
[402007592,1768456304880,-924.88,0.00041917,30]
[402007593,1768456304889,-500.0,0.00041917,30]
[402007594,1768456304899,-507.15421891,0.00041917,30]
[402007595,1768456304908,-500.0,0.00041917,30]
[402007596,1768456304918,-500.0,0.00041917,30]
[402007597,1768456304927,-500.0,0.00041917,30]
[402007598,1768456304936,-1638.25,0.00041917,30]
[402007599,1768456304945,-500.0,0.00041917,30]
[402007600,1768456304955,-910.75,0.00041917,30]
[402007601,1768456304964,-500.0,0.00041917,30]
[402007602,1768456304973,-1278.62,0.00041917,30]
[402007603,1768456304983,-1638.86,0.00041917,30]
[402007604,1768456304992,-500.0,0.00041917,30]
[402007605,1768456305001,-673.54,0.00041917,30]
[402007606,1768456305010,-500.0,0.00041917,30]
[402007607,1768456305019,-500.0,0.00041917,30]
[402007608,1768456305028,-500.0,0.00041917,30]
[402007609,1768456305037,-500.0,0.00041917,30]
[402007610,1768456305046,-500.0,0.00041917,30]
[402007611,1768456305055,-500.0,0.00041917,30]
[402007612,1768456305064,-500.0,0.00041917,30]
[402007613,1768456305073,-1463.35,0.00041917,30]
[402007614,1768456305082,-500.0,0.00041917,30]
[402007615,1768456305091,-1748.03,0.00041917,30]
[402007616,1768456305100,-778.16,0.00041917,30]
[402007617,1768456305109,-2170.39,0.00041917,30]
[402007618,1768456305119,-910.62,0.00041917,30]
[402007619,1768456305128,-500.0,0.00041917,30]
[402007620,1768456305137,-500.0,0.00041917,30]
[402007621,1768456305147,-1909.88,0.00041917,30]
[402007622,1768456305157,-1593.71,0.00041917,30]
[402007623,1768456305169,-2798.34,0.00041917,30]
[402007624,1768456305179,-509.07628065,0.00041917,30]
[402007625,1768456305188,-500.0,0.00041917,30]
[402007626,1768456305197,-500.0,0.00041917,30]
[402007627,1768456305207,-523.52,0.00041917,30]
[402007628,1768456305217,-300.0,0.00041917,2]
[402007629,1768456305226,-510.09688426,0.00041917,30]
[402007630,1768456305237,-500.0,0.00041917,30]
[402007631,1768456305246,-764.51,0.00041917,30]
[402007632,1768456305256,-500.0,0.00041917,30]
[402007633,1768456305264,-500.0,0.00041917,30]
[402007634,1768456305273,-500.0,0.00041917,30]
[402007635,1768456305283,-500.0,0.00041917,30]
[402007636,1768456305291,-500.0,0.00041917,30]
[402007637,1768456305301,-548.84,0.00041917,30]
[402007638,1768456305310,-1135.91,0.00041917,30]
[402007639,1768456305319,-538.03,0.00041917,30]
[402007640,1768456305329,-500.0,0.00041917,30]
[402007641,1768456305338,-845.61,0.00041917,30]
[402007642,1768456305347,-500.0,0.00041917,30]
[402007643,1768456305357,-1817.75,0.00041917,30]
[402007644,1768456305366,-500.0,0.00041917,30]
[402007645,1768456305375,-977.99,0.00041917,30]
[402007646,1768456305385,-1758.16,0.00041917,30]
[402007647,1768456305394,-634.83,0.00041917,30]
[402007648,1768456305403,-815.54,0.00041917,30]
[402007649,1768456305412,-500.0,0.00041917,30]
[402007650,1768456305422,-500.0,0.00041917,30]
[402007651,1768456305431,-500.0,0.00041917,30]
[402007652,1768456305440,-500.0,0.00041917,30]
[402007653,1768456305450,-500.0,0.00041917,30]
[402007654,1768456305459,-539.5,0.00041917,30]
[402007655,1768456305468,-500.0,0.00041917,30]
[402007656,1768456305478,-642.78,0.00041917,30]
[402007657,1768456305488,-1744.44,0.00041917,30]
[402007658,1768456305497,-554.79,0.00041917,30]
[402007659,1768456305505,-1733.16,0.00041917,30]
[402007660,1768456305514,-504.72119257,0.00041917,30]
[402007661,1768456305523,-2696.96,0.00041917,30]
[402007662,1768456305533,-500.0,0.00041917,30]
[402007663,1768456305542,-512.87,0.00041917,30]
[402007664,1768456305552,-2904.96,0.00041917,30]
[402007665,1768456305561,-500.0,0.00041917,30]
[402007666,1768456305570,-500.0,0.00041917,30]
[402007667,1768456305580,-500.0,0.00041917,30]
[402007668,1768456305589,-2444.5,0.00041917,30]
[402007669,1768456305598,-607.66,0.00041917,30]
[402007670,1768456305608,-1909.68,0.00041917,30]
[402007671,1768456305617,-500.0,0.00041917,30]
[402007672,1768456305627,-1560.32,0.00041917,30]
[402007673,1768456305637,-500.0,0.00041917,30]
[402007674,1768456305647,-500.0,0.00041917,30]
[402007675,1768456305657,-520.80471575,0.00041917,30]
[402007676,1768456305666,-500.0,0.00041917,30]
[402007677,1768456305676,-862.87,0.00041917,30]
[402007678,1768456305685,-500.0,0.00041917,30]
[402007679,1768456305893,-1583.24,0.00041917,30]
[402007680,1768456305904,-1117.85,0.00041917,30]
[402007681,1768456305914,-500.0,0.00041917,30]
[402007682,1768456305923,-500.0,0.00041917,30]
[402007683,1768456305932,-500.0,0.00041917,30]
[402007684,1768456305942,-5720.75,0.00041917,30]
[402007685,1768456305950,-1414.83,0.00041917,30]
[402007686,1768456305960,-500.0,0.00041917,30]
[402007687,1768456305969,-540.99,0.00041917,30]
[402007688,1768456305978,-500.0,0.00041917,30]
[402007689,1768456305987,-875.0,0.00041918,2]
[402007690,1768456305996,-2000.0,0.00041918,120]
[402007691,1768456306005,-2000.0,0.00041918,120]
[402007692,1768456306015,-162.0,0.00041934,16]
[402007693,1768456306024,-162.0,0.00041934,16]
[402007694,1768456306033,-834.0,0.00041942,16]
[402007695,1768456306042,-151.37188451,0.00041942,120]
[402007696,1768456306051,-162.0,0.00041943,16]
[402007697,1768456306060,-162.0,0.00041945,16]
[402007698,1768456306069,-162.0,0.00041945,16]
[402007699,1768456306078,-162.0,0.00041946,16]
[402007700,1768456306087,-162.0,0.00041946,16]
[402007701,1768456306096,-834.0,0.00041946,16]
[402007702,1768456306106,-217.95841451,0.00041947,14]
[402007703,1768456306115,-217.9584145,0.00041947,14]
[402007704,1768456306125,-875.0,0.00041973,2]
[402007705,1768456306134,-150.0,0.00041988,120]
[402007706,1768456306144,-466.00954788,0.00041999,120]
[402007707,1768456306153,-150.0,0.00042,120]
[402007708,1768456306166,-150.0,0.00042,120]
[402007709,1768456306175,-150.0,0.00042,120]
[402007710,1768456306184,-150.0,0.00042,120]
[402007711,1768456306193,-150.0,0.00042,120]
[402007712,1768456306205,-1000.0,0.00042,120]
[402007713,1768456306214,-500.0,0.00042,120]
[402007714,1768456306224,-1778.32,0.00042,120]
[402007715,1768456306236,-500.0,0.00042,64]
[402007716,1768456306246,-150.0,0.00042,120]
[402007717,1768456306255,-150.0,0.00042,120]
[402007718,1768456306264,-500.0,0.00042,120]
[402007719,1768456306273,-150.0,0.00042,120]
[402007720,1768456306283,-150.0,0.00042,120]
[402007721,1768456306292,-2000.0,0.00042,120]
[402007722,1768456306301,-1000.0,0.00042,120]
[402007723,1768456306310,-722.70302575,0.00042,120]
[402007724,1768456306320,-1030.93383503,0.00042,120]
[402007725,1768456306328,-678.79821001,0.00042,120]
[402007726,1768456306338,-1306.0,0.00042,120]
[402007727,1768456306347,-250000.0,0.00042,30]
[402007728,1768456306356,-1000.0,0.00042,120]
[402007729,1768456306365,-1000.0,0.00042,120]
[402007730,1768456306382,-1000.0,0.00042,120]
[402007731,1768456306402,-1000.0,0.00042,120]
[402007732,1768456306422,-1000.0,0.00042,120]
[402007733,1768456306433,-1000.0,0.00042,120]
[402007734,1768456306443,-1000.0,0.00042,120]
[402007735,1768456306453,-1000.0,0.00042,120]
[402007736,1768456306462,-1000.0,0.00042,120]
[402007737,1768456306471,-1000.0,0.00042,120]
[402007738,1768456306480,-1000.0,0.00042,120]
[402007739,1768456306489,-1000.0,0.00042,120]
[402007740,1768456306498,-1000.0,0.00042,120]
[402007741,1768456306508,-1000.0,0.00042,120]
[402007742,1768456306517,-1000.0,0.00042,120]
[402007743,1768456306526,-1000.0,0.00042,120]
[402007744,1768456306535,-1000.0,0.00042,120]
[402007745,1768456306544,-1000.0,0.00042,120]
[402007746,1768456306553,-1000.0,0.00042,120]
[402007747,1768456306562,-1000.0,0.00042,120]
[402007748,1768456306571,-1000.0,0.00042,120]
[402007749,1768456306580,-1000.0,0.00042,120]
[402007750,1768456306590,-1753.0,0.00042,30]
[402007751,1768456306599,-1000.0,0.00042,120]
[402007752,1768456306608,-276.22,0.00042,30]
[402007753,1768456306618,-152.55437222,0.00042,120]
[402007754,1768456306628,-254.93065722,0.00042,120]
[402007755,1768456306637,-859.80605061,0.00042007,2]
[402007756,1768456306646,-447.3913417,0.00042007,2]
[402007757,1768456306655,-200.0,0.00042009,120]
[402007758,1768456306665,-875.0,0.00042028,2]
[402007759,1768456306674,-18604.0,0.00042048,30]
[402007760,1768456306683,-999.0,0.00042082,120]
[402007761,1768456306692,-999.0,0.00042082,120]
[402007762,1768456306701,-999.0,0.00042082,120]
[402007763,1768456306710,-613.15752486,0.00042082,120]
[402007764,1768456306719,-875.0,0.00042082,2]
[402007765,1768456306728,-150.0,0.000421,120]
[402007766,1768456306737,-150.0,0.000421,120]
[402007767,1768456306746,-150.0,0.000421,120]
[402007768,1768456306755,-875.0,0.00042137,2]
[402007769,1768456306763,-300.147881,0.00042191,30]
[402007770,1768456306772,-355.426866,0.00042191,30]
[402007771,1768456306781,-166.871004,0.00042191,30]
[402007772,1768456306790,-410.96488111,0.00042191,30]
[402007773,1768456306799,-500.0,0.00042191,30]
[402007774,1768456306808,-500.0,0.00042191,30]
[402007775,1768456306817,-500.0,0.00042191,30]
[402007776,1768456306826,-847.67,0.00042191,30]
[402007777,1768456306835,-703.15,0.00042191,30]
[402007778,1768456306844,-500.0,0.00042191,30]
[402007779,1768456306854,-500.0,0.00042191,30]
[402007780,1768456306863,-500.0,0.00042191,30]
[402007781,1768456306872,-556.0,0.00042191,30]
[402007782,1768456306881,-500.0,0.00042191,30]
[402007783,1768456306889,-653.27,0.00042191,30]
[402007784,1768456306899,-500.0,0.00042191,30]
[402007785,1768456306908,-500.0,0.00042191,30]
[402007786,1768456306918,-500.0,0.00042191,30]
[402007787,1768456306927,-500.0,0.00042191,30]
[402007788,1768456306937,-500.0,0.00042191,30]
[402007789,1768456306952,-889.5,0.00042191,30]
[402007790,1768456306967,-500.0,0.00042191,30]
[402007791,1768456306976,-500.0,0.00042191,30]
[402007792,1768456306985,-763.28,0.00042191,30]
[402007793,1768456306995,-1382.81,0.00042191,30]
[402007794,1768456307004,-922.59,0.00042191,30]
[402007795,1768456307013,-1002.4,0.00042191,30]
[402007796,1768456307021,-500.0,0.00042191,30]
[402007797,1768456307030,-500.0,0.00042191,30]
[402007798,1768456307039,-1780.18,0.00042191,30]
[402007799,1768456307048,-500.0,0.00042191,30]
[402007800,1768456307057,-500.0,0.00042191,30]
[402007801,1768456307066,-500.0,0.00042191,30]
[402007802,1768456307075,-500.0,0.00042191,30]
[402007803,1768456307084,-500.0,0.00042191,30]
[402007804,1768456307093,-500.0,0.00042191,30]
[402007805,1768456307102,-368.2360237,0.00042191,30]